[Event "Polish University-ch Women 2024"]
[Site "Lublin"]
[Date "2024.02.23"]
[Round "3.4"]
[White "Zarebska, Lena"]
[Black "Wikar, Martyna"]
[Result "0-1"]
[ECO "B32"]
[WhiteElo "1871"]
[BlackElo "2214"]
[Annotator "RC"]
[PlyCount "78"]
[EventDate "2024.02.22"]
[EventType "swiss"]
[EventCountry "POL"]
[SourceTitle "playchess.com"]
[Source "ChessBase"]
[SourceQuality "1"]
[TimeControl "600+3"]

1. e4 {[%emt 0:00:02]} c5 {[%emt 0:00:01]} 2. Nf3 {[%emt 0:00:02]} Nc6 {[%emt 0:00:01]} 3. d4 {[%emt 0:00:01]} cxd4 {[%emt 0:00:01]} 4. Nxd4 {[%emt 0:00:01]} e5 {[%emt 0:00:01]} 5. Nb5 {[%emt 0:00:01]} d6 {[%emt 0:00:01]} 6. c4 {[%emt 0:00:01]} Be6 {[%emt 0:00:01]} 7. N1c3 {[%emt 0:00:02]} a6 {[%emt 0:00:01]} 8. Na3 {[%emt 0:00:01]} Nf6 {[%emt 0:00:01]} 9. Bd3 {[%emt 0:00:01]} g6 {[%emt 0:00:02]} 10. Nd5 {[%emt 0:00:04]} Bg7 {[%emt 0:00:23]} 11. O-O {[%emt 0:00:07]} Nd7 {[%emt 0:00:56]} 12. Be3 {[%emt 0:00:22]} O-O {[%emt 0:00:08]} 13. Nc2 {[%emt 0:00:05]} Nc5 {[%emt 0:00:25]} 14. Bxc5 {[%emt 0:00:24]} dxc5 {[%emt 0:00:01]} 15. a3 {[%emt 0:00:50]} Rc8 {[%emt 0:00:46]} 16. Qe2 {[%emt 0:00:24]} Kh8 {[%emt 0:00:28]} 17. b4 {[%emt 0:00:18]} Nd4 {[%emt 0:01:11]} 18. Nxd4 {[%emt 0:00:03]} exd4 {[%emt 0:00:46]} 19. Rab1 {[%emt 0:01:46]} b6 {[%emt 0:00:28]} 20. bxc5 {[%emt 0:00:07]} bxc5 {[%emt 0:00:01]} 21. Rb7 {[%emt 0:00:13]} Qa5 {[%emt 0:00:50]} 22. Qb2 {[%emt 0:00:15]} Rcd8 {[%emt 0:01:23]} 23. Nc7 {[%emt 0:02:02]} Bc8 {[%emt 0:00:17]} 24. Rb6 {[%emt 0:00:01]} f5 {[%emt 0:00:49]} 25. exf5 {[%emt 0:00:14]} Bxf5 {[%emt 0:00:02]} 26. Bxf5 {[%emt 0:00:37]} Rxf5 {[%emt 0:00:03]} 27. Ne6 {[%emt 0:00:49]} Rg8 {[%emt 0:00:07]} 28. Rb7 {[%emt 0:00:02]} Rf6 {[%emt 0:01:06]} 29. Ng5 {[%emt 0:00:05]} h6 {[%emt 0:00:03]} 30. Nf7+ {[%emt 0:00:03]} Kh7 {[%emt 0:00:01]} 31. Qb3 {[%emt 0:00:23]} Rf8 {[%emt 0:00:09]} 32. Nxh6 {[%emt 0:01:15]} Rxf2 {[%emt 0:00:01]} 33. Rb1 {[%emt 0:00:18]} Qd2 {[%emt 0:00:28]} 34. Ng4 {[%emt 0:00:24]} Rxg2+ {[%emt 0:00:09]} 35. Kh1 {[%emt 0:00:00]} Kg8 {[%emt 0:00:22]} 36. Qh3 {[%emt 0:00:13]} Re2 {[%emt 0:00:07]} 37. Rxg7+ {[%emt 0:00:11]} Kxg7 {[%emt 0:00:01]} 38. Rg1 {[%emt 0:00:03]} Qf4 {[%emt 0:00:04]} 39. Qh4 {[%emt 0:00:10]} Qf3+ {[%emt 0:00:15]} 0-1

[Event "Polish University-ch Women 2024"]
[Site "Lublin"]
[Date "2024.02.23"]
[Round "3.5"]
[White "Kubicka, Anna"]
[Black "Kulpa, Zuzanna"]
[Result "0-1"]
[ECO "C97"]
[WhiteElo "2278"]
[BlackElo "1924"]
[Annotator "TA"]
[PlyCount "122"]
[EventDate "2024.02.22"]
[EventType "swiss"]
[EventCountry "POL"]
[SourceTitle "playchess.com"]
[Source "ChessBase"]
[SourceQuality "1"]
[TimeControl "600+3"]

{[%evp 23,122,25,46,43,43,29,50,32,35,6,21,-13,13,13,9,21,20,0,20,20,20,20,20,20,20,12,25,0,49,60,75,30,39,-30,131,108,123,121,127,110,102,100,123,13,143,103,95,130,106,0,21,16,108,0,15,0,17,-279,-303,-675,-644,-642,-515,-730,-727,-1406,-1561,-1481,-1610,-1285,-1533,-1489,-1568,-1188,-1447,-1512,-1412,-3144,-2337,-29973,-29974,-29981,-29982,-29987,-29988,-29988,-29988,-29991,-29990,-29991,-29980,-29981,-29980,-29980,-29981,-29981,-29982,-29982,-29983,-29983,-29979]} 1. e4 {[%emt 0:00:02]} e5 {[%emt 0:00:08]} 2. Nf3 {[%emt 0:00:02]} Nc6 {[%emt 0:00:02]} 3. Bb5 {[%emt 0:00:02]} a6 {[%emt 0:00:01]} 4. Ba4 {[%emt 0:00:02]} Nf6 {[%emt 0:00:03]} 5. O-O {[%emt 0:00:02]} Be7 {[%emt 0:00:02]} 6. Re1 {[%emt 0:00:03]} b5 {[%emt 0:00:03]} 7. Bb3 {[%emt 0:00:02]} d6 {[%emt 0:00:02]} 8. c3 {[%emt 0:00:02]} O-O {[%emt 0:00:04]} 9. h3 {[%emt 0:00:02]} Na5 {[%emt 0:00:17]} 10. Bc2 {[%emt 0:00:02]} c5 {[%emt 0:00:02]} 11. d4 {[%emt 0:00:02]} Qc7 {[%emt 0:00:02]} 12. d5 {[%emt 0:00:02]} Bd7 {[%emt 0:00:43]} 13. b3 {[%emt 0:00:05][%cal Bb2b3,Bb3b4][%mdl 32]} Rfc8 {[%emt 0:01:37]} 14. Nbd2 {[%emt 0:00:06]} c4 {[%emt 0:00:15]} 15. b4 {[%emt 0:00:02] White is slightly better.} Nb7 {[%emt 0:00:02]} 16. a3 {[%emt 0:02:32]} a5 {[%emt 0:00:08]} 17. Bb2 {[%emt 0:00:03]} Bf8 {[%emt 0:01:07]} 18. Nf1 {[%emt 0:00:05]} g6 {[%emt 0:00:03]} 19. Ng3 {[%emt 0:00:41]} Bg7 {[%emt 0:00:19]} 20. Qd2 {[%emt 0:00:39]} Rf8 {[%emt 0:01:30]} 21. Rad1 {[%emt 0:01:15]} h6 {[%emt 0:00:27]} 22. Bc1 {[%emt 0:00:12]} Nh7 {[%emt 0:00:33]} 23. Qe2 {[%emt 0:00:12]} axb4 {[%emt 0:00:32]} 24. axb4 {[%emt 0:00:03]} Ra2 {[%emt 0:00:09]} 25. Nh2 {[%emt 0:00:42]} f5 {[%emt 0:00:56]} (25... Rfa8 $11) 26. exf5 $14 {[%emt 0:00:05]} Bxf5 {[%emt 0:00:21]} 27. Nxf5 {[%emt 0:00:22]} gxf5 {[%emt 0:00:01]} 28. Be3 {[%emt 0:00:19]} ({White should try} 28. g4 $14) 28... Kh8 $2 {[%emt 0:00:32]} (28... Nf6 $11) 29. Ra1 $16 {[%emt 0:00:28]} Rfa8 {[%emt 0:00:13]} 30. Rxa2 {[%emt 0:00:06]} Rxa2 {[%emt 0:00:01]} 31. Qd1 {[%emt 0:00:31]} e4 {[%emt 0:00:39]} 32. Bb1 {[%emt 0:00:39]} Ra1 {[%emt 0:00:06]} 33. Bd4 {[%emt 0:00:17]} (33. Qd2 $16) 33... Nd8 {[%emt 0:00:13]} (33... Bxd4 $11 34. Qxd4+ Qg7) 34. Nf1 {[%emt 0:00:22] Strongly threatening Ng3.} Bxd4 {[%emt 0:00:23]} 35. Qxd4+ {[%emt 0:00:02]} Qg7 {[%emt 0:00:01]} 36. Qd2 {[%emt 0:00:56]} (36. Qxg7+ $16 Kxg7 37. Ng3) 36... Nf7 {[%emt 0:00:03][%cal Bd8f7,Bf7e5,Be5d3][%mdl 32]} 37. Ng3 {[%emt 0:00:12]} Qf6 {[%emt 0:00:07] [#]} (37... Ne5 $11) 38. Rf1 {[%emt 0:00:24]} ({Only move:} 38. f4 $1 $16) 38... Ra3 {[%emt 0:00:01]} 39. Rc1 {[%emt 0:00:15]} ({Less strong is} 39. Qf4 Rxc3 40. Nxf5 (40. Qxf5 Qxf5 41. Nxf5 Nf6 $11) 40... Nhg5 $16) 39... Ne5 {[%emt 0:00:03]} 40. Qd4 $2 {[%emt 0:00:00][%mdl 8192] Now White is beyond hope.} (40. Qf4 $11 {and White stays safe.}) 40... Nd3 $19 {[%emt 0:00:03]} 41. Qxf6+ $2 {[%emt 0:00:00]} (41. Rf1 Qxd4 (41... Rxc3 42. Nxf5 Qxd4 43. Nxd4 $11) 42. cxd4) 41... Nxf6 {[%emt 0:00:01]} 42. Bxd3 {[%emt 0:00:03]} cxd3 {[%emt 0:00:03][%mdl 4096] Endgame. KRN-KRN} 43. Nf1 {[%emt 0:00:02]} Nxd5 {[%emt 0:00:01]} 44. c4 {[%emt 0:00:03]} bxc4 {[%emt 0:00:04]} 45. Rxc4 {[%emt 0:00:01]} Ra1 {[%emt 0:00:01]} 46. Rd4 {[%emt 0:00:02]} Nc3 {[%emt 0:00:02] [#] aiming for ...Ne2+.} 47. Rxd6 {[%emt 0:00:03]} Ne2+ {[%emt 0:00:02]} 48. Kh2 {[%emt 0:00:01]} Rxf1 {[%emt 0:00:01] KRN-KR} 49. b5 {[%emt 0:00:02]} Rb1 {[%emt 0:00:03]} 50. f3 {[%emt 0:00:03]} Rxb5 {[%emt 0:00:01] ...Rb2 is the strong threat.} 51. fxe4 {[%emt 0:00:01]} fxe4 {[%emt 0:00:01] Black mates.} 52. Rxh6+ {[%emt 0:00:02]} Kg7 {[%emt 0:00:25]} 53. Re6 {[%emt 0:00:03]} d2 {[%emt 0:00:00]} 54. Rd6 {[%emt 0:00:01]} Rb2 {[%emt 0:00:00]} 55. g4 {[%emt 0:00:05]} e3 {[%emt 0:00:00]} 56. Kg2 {[%emt 0:00:02]} Rb1 {[%emt 0:00:00]} 57. Rd7+ {[%emt 0:00:09]} Kf8 {[%emt 0:00:00]} 58. Kf3 {[%emt 0:00:03]} Ng1+ {[%emt 0:00:00]} 59. Kxe3 {[%emt 0:00:04]} d1=Q {[%emt 0:00:00]} 60. Rxd1 {[%emt 0:00:03]} Rxd1 {[%emt 0:00:00]} 61. h4 {[%emt 0:00:01]} Nh3 {[%emt 0:00:27] Weighted Error Value: White=0.79/Black=0.24 (precise) .  Loses game:     	White=1     	---        Mistake:       	White=5     	Black=4      Inaccurate:     	White=4     	Black=1      OK:         	White=7     	Black=9      Best:        	White=2     	Black=3} 0-1

[Event "Polish University-ch Women 2024"]
[Site "Lublin"]
[Date "2024.02.23"]
[Round "3.6"]
[White "Michalska, Aleksandra"]
[Black "Kucharska, Honorata"]
[Result "1-0"]
[ECO "B23"]
[WhiteElo "1812"]
[BlackElo "2137"]
[Annotator "NA RC"]
[PlyCount "139"]
[EventDate "2024.02.22"]
[EventType "swiss"]
[EventCountry "POL"]
[SourceTitle "playchess.com"]
[Source "ChessBase"]
[SourceQuality "1"]
[TimeControl "600+3"]

1. e4 {[%emt 0:00:01]} c5 {[%emt 0:00:05]} 2. Nc3 {[%emt 0:00:01]} Nc6 {[%emt 0:00:04]} 3. Bb5 {[%emt 0:00:02]} e6 {[%emt 0:00:11]} 4. Bxc6 {[%emt 0:00:02]} bxc6 {[%emt 0:00:04]} 5. f4 {[%emt 0:00:03]} d5 {[%emt 0:00:06]} 6. d3 {[%emt 0:00:02]} d4 {[%emt 0:00:32]} 7. Nce2 {[%emt 0:00:06]} Nf6 {[%emt 0:00:01]} 8. b3 {[%emt 0:00:07]} Be7 {[%emt 0:00:06]} 9. Nf3 {[%emt 0:00:04]} O-O {[%emt 0:00:12]} 10. h3 {[%emt 0:00:06]} Nd7 {[%emt 0:00:11]} 11. O-O {[%emt 0:00:32]} a5 {[%emt 0:00:22]} 12. a4 {[%emt 0:00:16]} Nf6 {[%emt 0:00:51]} 13. Bd2 {[%emt 0:01:07]} Qc7 {[%emt 0:00:24]} 14. Qe1 {[%emt 0:00:22]} Nd7 {[%emt 0:00:35]} 15. Ng3 {[%emt 0:00:43]} Kh8 {[%emt 0:00:38]} 16. e5 {[%emt 0:01:34]} f5 {[%emt 0:01:00]} 17. exf6 {[%emt 0:00:56]} Nxf6 {[%emt 0:00:01]} 18. Ne5 {[%emt 0:00:10]} Bd7 {[%emt 0:00:50]} 19. Ne4 {[%emt 0:00:13]} Nxe4 {[%emt 0:00:14]} 20. Qxe4 {[%emt 0:00:05]} Bf6 {[%emt 0:00:10]} 21. Rae1 {[%emt 0:00:09]} Be8 {[%emt 0:00:02]} 22. g4 {[%emt 0:00:11]} Kg8 {[%emt 0:00:57]} 23. g5 {[%emt 0:00:12]} Be7 {[%emt 0:00:31]} 24. Kg2 {[%emt 0:00:51]} Bd6 {[%emt 0:00:17]} 25. Rf3 {[%emt 0:00:37]} Rf5 {[%emt 0:00:28]} 26. Nc4 {[%emt 0:00:24]} Bf7 {[%emt 0:00:09]} 27. h4 {[%emt 0:00:10]} g6 {[%emt 0:00:03]} 28. Ref1 {[%emt 0:00:22]} Bf8 {[%emt 0:00:02]} 29. Qe1 {[%emt 0:00:11]} e5 {[%emt 0:00:47]} 30. Nxe5 {[%emt 0:00:13]} Bd5 {[%emt 0:00:05]} 31. Nc4 {[%emt 0:00:14]} Bg7 {[%emt 0:00:08]} 32. Kg3 {[%emt 0:00:16]} Bxf3 {[%emt 0:00:16]} 33. Rxf3 {[%emt 0:00:01]} Raf8 {[%emt 0:00:04]} 34. Qe6+ {[%emt 0:00:07]} Kh8 {[%emt 0:00:26]} 35. Bxa5 {[%emt 0:00:05]} Qb8 {[%emt 0:00:10]} 36. Bd2 {[%emt 0:00:09]} Qc7 {[%emt 0:00:15]} 37. Qd6 {[%emt 0:00:07]} Qc8 {[%emt 0:00:03]} 38. Qe7 {[%emt 0:00:27]} Re8 {[%emt 0:00:17]} 39. Qa7 {[%emt 0:00:01]} Qe6 {[%emt 0:00:05]} 40. Rf2 {[%emt 0:00:21]} Rf7 {[%emt 0:00:02]} 41. Qxc5 {[%emt 0:00:02]} Rf5 {[%emt 0:00:04]} 42. Qd6 {[%emt 0:00:03]} Qf7 {[%emt 0:00:02]} 43. Qxc6 {[%emt 0:00:06]} Qf8 {[%emt 0:00:07]} 44. Qd6 {[%emt 0:00:12]} Rd8 {[%emt 0:00:07]} 45. Qxf8+ {[%emt 0:00:01]} Bxf8 {[%emt 0:00:00]} 46. a5 {[%emt 0:00:01]} Ra8 {[%emt 0:00:04]} 47. Nb6 {[%emt 0:00:04]} Ra6 {[%emt 0:00:00]} 48. Nd7 {[%emt 0:00:03]} Bd6 {[%emt 0:00:05]} 49. Nf6 {[%emt 0:00:06]} h6 {[%emt 0:00:03]} 50. Ne4 {[%emt 0:00:05]} Bc7 {[%emt 0:00:04]} 51. b4 {[%emt 0:00:00]} hxg5 {[%emt 0:00:02]} 52. hxg5 {[%emt 0:00:01]} Kg7 {[%emt 0:00:02]} 53. Kg4 {[%emt 0:00:03]} Ra8 {[%emt 0:00:06]} 54. Nc5 {[%emt 0:00:02]} Bd6 {[%emt 0:00:04]} 55. Ne6+ {[%emt 0:00:01]} Kg8 {[%emt 0:00:02]} 56. Nxd4 {[%emt 0:00:01]} Rf7 {[%emt 0:00:03]} 57. c4 {[%emt 0:00:03]} Bc7 {[%emt 0:00:03]} 58. Ne6 {[%emt 0:00:04]} Bd6 {[%emt 0:00:04]} 59. c5 {[%emt 0:00:02]} Bf8 {[%emt 0:00:03]} 60. Nxf8 {[%emt 0:00:02]} Rfxf8 {[%emt 0:00:01]} 61. Rf3 {[%emt 0:00:02]} Rfd8 {[%emt 0:00:02]} 62. Bc3 {[%emt 0:00:03]} Rd5 {[%emt 0:00:01]} 63. d4 {[%emt 0:00:09]} Kf7 {[%emt 0:00:01]} 64. f5 {[%emt 0:00:01]} gxf5+ {[%emt 0:00:05]} 65. Rxf5+ {[%emt 0:00:01]} Ke6 {[%emt 0:00:00]} 66. Rf6+ {[%emt 0:00:02]} Ke7 {[%emt 0:00:03]} 67. b5 {[%emt 0:00:03]} Rg8 {[%emt 0:00:02]} 68. Rf5 {[%emt 0:00:01]} Rdd8 {[%emt 0:00:04]} 69. Re5+ {[%emt 0:00:02]} Kf7 {[%emt 0:00:00]} 70. a6 {[%emt 0:00:01]} 1-0

[Event "Polish University-ch Women 2024"]
[Site "Lublin"]
[Date "2024.02.23"]
[Round "3.7"]
[White "Jarocka, Liwia"]
[Black "Sloniewska, Alicja"]
[Result "1-0"]
[ECO "B12"]
[WhiteElo "2199"]
[BlackElo "1685"]
[Annotator "RC"]
[PlyCount "93"]
[EventDate "2024.02.22"]
[EventType "swiss"]
[EventCountry "POL"]
[SourceTitle "playchess.com"]
[Source "ChessBase"]
[SourceQuality "1"]
[TimeControl "600+3"]

1. e4 {[%emt 0:00:01]} c6 {[%emt 0:00:00]} 2. d4 {[%emt 0:00:02]} d5 {[%emt 0:00:01]} 3. f3 {[%emt 0:00:04]} Qb6 {[%emt 0:00:05]} 4. Nc3 {[%emt 0:00:02]} e6 {[%emt 0:00:13]} 5. e5 {[%emt 0:00:50]} c5 {[%emt 0:00:21]} 6. f4 {[%emt 0:00:30]} cxd4 {[%emt 0:00:23]} 7. Nb5 {[%emt 0:00:24]} Nc6 {[%emt 0:00:34]} 8. Nf3 {[%emt 0:00:01]} Bc5 {[%emt 0:00:37]} 9. a3 {[%emt 0:00:26]} a6 {[%emt 0:00:16]} 10. b4 {[%emt 0:00:02]} axb5 {[%emt 0:00:21]} 11. bxc5 {[%emt 0:00:04]} Qxc5 {[%emt 0:00:03]} 12. Bb2 {[%emt 0:00:31]} Ra4 {[%emt 0:00:45]} 13. Bd3 {[%emt 0:00:15]} Nge7 {[%emt 0:00:06]} 14. O-O {[%emt 0:00:22]} Bd7 {[%emt 0:00:19]} 15. Qe2 {[%emt 0:00:20]} Na5 {[%emt 0:00:49]} 16. Rfb1 {[%emt 0:01:30]} Nec6 {[%emt 0:00:09]} 17. Qf2 {[%emt 0:00:23]} Nc4 {[%emt 0:00:37]} 18. Bc1 {[%emt 0:01:09]} Ra5 {[%emt 0:02:10]} 19. c3 {[%emt 0:00:16]} Qe7 {[%emt 0:00:15]} 20. cxd4 {[%emt 0:00:26]} Nxa3 {[%emt 0:00:12]} 21. Bxa3 {[%emt 0:00:45]} Rxa3 {[%emt 0:00:03]} 22. Bxb5 {[%emt 0:00:04]} O-O {[%emt 0:00:12]} 23. Rxa3 {[%emt 0:00:20]} Qxa3 {[%emt 0:00:02]} 24. h3 {[%emt 0:00:14]} Qa5 {[%emt 0:00:31]} 25. Bd3 {[%emt 0:00:07]} Nb4 {[%emt 0:00:11]} 26. Bxh7+ {[%emt 0:00:09]} Kxh7 {[%emt 0:00:12]} 27. Qh4+ {[%emt 0:00:03]} Kg8 {[%emt 0:00:02]} 28. Qe7 {[%emt 0:00:34]} Nc6 {[%emt 0:00:53]} 29. Qxd7 {[%emt 0:00:08]} Qc3 {[%emt 0:00:07]} 30. Rd1 {[%emt 0:00:33]} Qe3+ {[%emt 0:00:06]} 31. Kh1 {[%emt 0:00:01]} Qb3 {[%emt 0:00:12]} 32. Re1 {[%emt 0:00:23]} Qb4 {[%emt 0:00:08]} 33. Rd1 {[%emt 0:00:05]} Qb3 {[%emt 0:00:04]} 34. Rg1 {[%emt 0:00:04]} Qb4 {[%emt 0:00:03]} 35. f5 {[%emt 0:00:17]} exf5 {[%emt 0:00:19]} 36. Qxd5 {[%emt 0:00:06]} Rd8 {[%emt 0:00:07]} 37. Qa2 {[%emt 0:00:12]} Nxd4 {[%emt 0:00:10]} 38. Nxd4 {[%emt 0:00:05]} Qxd4 {[%emt 0:00:02]} 39. e6 {[%emt 0:00:01]} fxe6 {[%emt 0:00:10]} 40. Qxe6+ {[%emt 0:00:02]} Kh8 {[%emt 0:00:01]} 41. Qxf5 {[%emt 0:00:01]} Qf6 {[%emt 0:00:07]} 42. Qh5+ {[%emt 0:00:02]} Kg8 {[%emt 0:00:04]} 43. Qe2 {[%emt 0:00:03]} b6 {[%emt 0:00:03]} 44. Qc4+ {[%emt 0:00:01]} Kh8 {[%emt 0:00:03]} 45. Rf1 {[%emt 0:00:04]} Qe5 {[%emt 0:00:10]} 46. Qh4+ {[%emt 0:00:07]} Kg8 {[%emt 0:00:03]} 47. Qxd8+ {[%emt 0:00:15]} 1-0

[Event "Polish University-ch Women 2024"]
[Site "Lublin"]
[Date "2024.02.23"]
[Round "3.8"]
[White "Cieslak, Wiktoria"]
[Black "Shaban, Aliaksandra"]
[Result "0-1"]
[ECO "B03"]
[WhiteElo "1868"]
[BlackElo "1708"]
[Annotator "NA"]
[PlyCount "98"]
[EventDate "2024.02.22"]
[EventType "swiss"]
[EventCountry "POL"]
[SourceTitle "playchess.com"]
[Source "ChessBase"]
[SourceQuality "1"]
[TimeControl "600+3"]

1. e4 {[%emt 0:00:01]} Nf6 {[%emt 0:00:02]} 2. e5 {[%emt 0:00:02]} Nd5 {[%emt 0:00:01]} 3. d4 {[%emt 0:00:03]} d6 {[%emt 0:00:01]} 4. f4 {[%emt 0:00:10]} g6 {[%emt 0:00:15]} 5. Nf3 {[%emt 0:00:04]} Bg7 {[%emt 0:00:03]} 6. c4 {[%emt 0:00:04]} Nb6 {[%emt 0:00:02]} 7. Be2 {[%emt 0:00:04]} dxe5 {[%emt 0:00:15]} 8. fxe5 {[%emt 0:00:01]} Bf5 {[%emt 0:00:05]} 9. Nc3 {[%emt 0:00:16]} O-O {[%emt 0:00:03]} 10. O-O {[%emt 0:00:02]} c6 {[%emt 0:00:51]} 11. Bf4 {[%emt 0:00:32]} Re8 {[%emt 0:00:44]} 12. Rc1 {[%emt 0:00:22]} N8d7 {[%emt 0:00:01]} 13. Nh4 {[%emt 0:01:18]} Nf8 {[%emt 0:00:36]} 14. Nxf5 {[%emt 0:00:25]} gxf5 {[%emt 0:00:01]} 15. d5 {[%emt 0:00:29]} Ng6 {[%emt 0:00:10]} 16. b3 {[%emt 0:02:40]} Bxe5 {[%emt 0:00:52]} 17. Bxe5 {[%emt 0:00:06]} Nxe5 {[%emt 0:00:01]} 18. Rxf5 {[%emt 0:00:04]} Ng6 {[%emt 0:00:02]} 19. dxc6 {[%emt 0:00:10]} bxc6 {[%emt 0:00:22]} 20. Bf3 {[%emt 0:00:11]} Rc8 {[%emt 0:00:33]} 21. Rc5 {[%emt 0:00:24]} Nd7 {[%emt 0:00:07]} 22. Rxc6 {[%emt 0:00:03]} Rxc6 {[%emt 0:00:02]} 23. Bxc6 {[%emt 0:00:01]} Qb6+ {[%emt 0:00:01]} 24. Kh1 {[%emt 0:00:20]} Qxc6 {[%emt 0:00:01]} 25. Nd5 {[%emt 0:00:22]} Nb6 {[%emt 0:00:47]} 26. Ne3 {[%emt 0:00:23]} Qe4 {[%emt 0:00:28]} 27. Qd2 {[%emt 0:00:19]} e6 {[%emt 0:00:40]} 28. a4 {[%emt 0:00:28]} Qc6 {[%emt 0:00:18]} 29. a5 {[%emt 0:00:15]} Nd7 {[%emt 0:00:06]} 30. b4 {[%emt 0:00:07]} Nf6 {[%emt 0:00:13]} 31. Qd4 {[%emt 0:00:10]} Qe4 {[%emt 0:00:22]} 32. Qxa7 {[%emt 0:00:18]} Ra8 {[%emt 0:00:02]} 33. Qb6 {[%emt 0:00:13]} Nd7 {[%emt 0:00:01]} 34. Qd6 {[%emt 0:00:13]} Qxe3 {[%emt 0:00:02]} 35. Rd1 {[%emt 0:00:08]} Nf6 {[%emt 0:00:08]} 36. c5 {[%emt 0:00:12]} Qe4 {[%emt 0:00:06]} 37. c6 {[%emt 0:00:01]} Nf4 {[%emt 0:00:06]} 38. Rg1 {[%emt 0:00:56]} Rc8 {[%emt 0:00:25]} 39. c7 {[%emt 0:00:00]} Ne8 {[%emt 0:00:11]} 40. Qd8 {[%emt 0:00:00]} Qb7 {[%emt 0:00:05]} 41. Qg5+ {[%emt 0:00:00]} Ng6 {[%emt 0:00:01]} 42. b5 {[%emt 0:00:00]} Qxc7 {[%emt 0:00:03]} 43. b6 {[%emt 0:00:00]} Qb7 {[%emt 0:00:02]} 44. Qb5 {[%emt 0:00:00]} Nd6 {[%emt 0:00:03]} 45. Qb4 {[%emt 0:00:00]} Nf5 {[%emt 0:00:12]} 46. Ra1 {[%emt 0:00:00]} Ne3 {[%emt 0:00:04]} 47. Qd2 {[%emt 0:00:00]} Rc2 {[%emt 0:00:11]} 48. Qd8+ {[%emt 0:00:00]} Kg7 {[%emt 0:00:01]} 49. Qd4+ {[%emt 0:00:00]} e5 {[%emt 0:00:02]} 0-1

[Event "Polish University-ch Women 2024"]
[Site "Lublin"]
[Date "2024.02.23"]
[Round "3.9"]
[White "Furtak, Joanna"]
[Black "Harazinska, Magdalena"]
[Result "1/2-1/2"]
[ECO "B90"]
[WhiteElo "1883"]
[BlackElo "1950"]
[Annotator "NA"]
[PlyCount "96"]
[EventDate "2024.02.22"]
[EventType "swiss"]
[EventCountry "POL"]
[SourceTitle "playchess.com"]
[Source "ChessBase"]
[SourceQuality "1"]
[TimeControl "600+3"]

1. e4 {[%emt 0:00:02]} c5 {[%emt 0:00:01]} 2. Nf3 {[%emt 0:00:02]} d6 {[%emt 0:00:02]} 3. d4 {[%emt 0:00:02]} cxd4 {[%emt 0:00:02]} 4. Nxd4 {[%emt 0:00:02]} Nf6 {[%emt 0:00:02]} 5. Nc3 {[%emt 0:00:01]} a6 {[%emt 0:00:01]} 6. Nb3 {[%emt 0:00:05]} e6 {[%emt 0:00:16]} 7. Be3 {[%emt 0:00:18]} Qc7 {[%emt 0:00:25]} 8. g4 {[%emt 0:01:02]} b5 {[%emt 0:00:43]} 9. g5 {[%emt 0:00:44]} Nfd7 {[%emt 0:00:02]} 10. f4 {[%emt 0:00:43]} Bb7 {[%emt 0:00:12]} 11. Bg2 {[%emt 0:00:33]} Be7 {[%emt 0:03:00]} 12. O-O {[%emt 0:02:39]} Nc6 {[%emt 0:00:56]} 13. Ne2 {[%emt 0:01:15]} O-O {[%emt 0:00:37]} 14. Ng3 {[%emt 0:00:20]} Rfe8 {[%emt 0:00:45]} 15. Rc1 {[%emt 0:00:45]} Nb6 {[%emt 0:00:29]} 16. Nd2 {[%emt 0:00:19]} Na4 {[%emt 0:00:29]} 17. Rb1 {[%emt 0:00:39]} Nb6 {[%emt 0:00:36]} 18. Rc1 {[%emt 0:00:11]} d5 {[%emt 0:00:10]} 19. Qg4 {[%emt 0:00:44]} Rad8 {[%emt 0:00:51]} 20. c3 {[%emt 0:00:21]} Nc4 {[%emt 0:00:24]} 21. Nxc4 {[%emt 0:00:02]} dxc4 {[%emt 0:00:04]} 22. Rfd1 {[%emt 0:00:08]} Rxd1+ {[%emt 0:00:15]} 23. Rxd1 {[%emt 0:00:01]} Rd8 {[%emt 0:00:01]} 24. h4 {[%emt 0:00:10]} b4 {[%emt 0:00:10]} 25. Qe2 {[%emt 0:00:04]} Rxd1+ {[%emt 0:00:11]} 26. Qxd1 {[%emt 0:00:02]} Qd8 {[%emt 0:00:16]} 27. Qxd8+ {[%emt 0:00:06]} Bxd8 {[%emt 0:00:05]} 28. Bf1 {[%emt 0:00:01]} bxc3 {[%emt 0:00:04]} 29. bxc3 {[%emt 0:00:01]} Ba5 {[%emt 0:00:01]} 30. Bxc4 {[%emt 0:00:01]} Bxc3 {[%emt 0:00:01]} 31. f5 {[%emt 0:00:02]} Ne5 {[%emt 0:00:06]} 32. Bb3 {[%emt 0:00:01]} Nf3+ {[%emt 0:00:12]} 33. Kf2 {[%emt 0:00:01]} Nxh4 {[%emt 0:00:04]} 34. fxe6 {[%emt 0:00:01]} fxe6 {[%emt 0:00:01]} 35. Bxe6+ {[%emt 0:00:02]} Kf8 {[%emt 0:00:01]} 36. Bc5+ {[%emt 0:00:02]} Ke8 {[%emt 0:00:01]} 37. Bd5 {[%emt 0:00:03]} Bxd5 {[%emt 0:00:06]} 38. exd5 {[%emt 0:00:03]} Bd2 {[%emt 0:00:08]} 39. Ne4 {[%emt 0:00:02]} Bf4 {[%emt 0:00:02]} 40. Bd6 {[%emt 0:00:04]} Bxd6 {[%emt 0:00:06]} 41. Nxd6+ {[%emt 0:00:01]} Kd7 {[%emt 0:00:01]} 42. Ne4 {[%emt 0:00:03]} a5 {[%emt 0:00:05]} 43. Nc5+ {[%emt 0:00:09]} Kd6 {[%emt 0:00:01]} 44. Nb7+ {[%emt 0:00:01]} Kxd5 {[%emt 0:00:01]} 45. Nxa5 {[%emt 0:00:01]} Nf5 {[%emt 0:00:03]} 46. Kf3 {[%emt 0:00:03]} Nd4+ {[%emt 0:00:03]} 47. Kg4 {[%emt 0:00:02]} Ne6 {[%emt 0:00:06]} 48. Nb3 {[%emt 0:00:03]} h6 {[%emt 0:00:03]} 1/2-1/2